[Event "Titled Tuesday Blitz June 21 Late 2022"]
[White "Svane, Rasmus"]
[Black "So, Wesley"]
[WhiteFideId "4657101"]
[BlackFideId "5202213"]
[WhiteElo "2674"]
[BlackElo "2742"]
[Result "0-1"]
[Round "09"]
[TimeControl "180+1"]
[Date "2022.06.21"]
[WhiteClock "0:00:04"]
[BlackClock "0:00:28"]

1. Nf3 {[%clk 0:03:00]}  d5 {[%clk 0:02:59]} 2. g3 {[%clk 0:03:01]}  Nf6 {[%clk 0:02:54]} 3. Bg2 {[%clk 0:03:01]}  c5 {[%clk 0:02:54]} 4. O-O {[%clk 0:03:01]}  Nc6 {[%clk 0:02:50]} 5. d4 {[%clk 0:03:01]}  e6 {[%clk 0:02:51]} 6. c4 {[%clk 0:03:00]}  dxc4 {[%clk 0:02:52]} 7. dxc5 {[%clk 0:03:00]}  Qxd1 {[%clk 0:02:51]} 8. Rxd1 {[%clk 0:03:01]}  Bxc5 {[%clk 0:02:51]} 9. Nbd2 {[%clk 0:03:02]}  c3 {[%clk 0:02:51]} 10. bxc3 {[%clk 0:03:03]}  O-O {[%clk 0:02:51]} 11. Nb3 {[%clk 0:03:02]}  Be7 {[%clk 0:02:52]} 12. Nfd4 {[%clk 0:02:49]}  Nxd4 {[%clk 0:02:51]} 13. cxd4 {[%clk 0:02:50]}  Nd5 {[%clk 0:02:51]} 14. Bd2 {[%clk 0:02:32]}  f5 {[%clk 0:02:41]} 15. Na5 {[%clk 0:02:32]}  Bf6 {[%clk 0:02:30]} 16. e3 {[%clk 0:02:30]}  b6 {[%clk 0:02:28]} 17. Nc6 {[%clk 0:02:16]}  Bb7 {[%clk 0:02:27]} 18. Nb4 {[%clk 0:02:15]}  Rfc8 {[%clk 0:02:14]} 19. Rdc1 {[%clk 0:02:13]}  Be7 {[%clk 0:02:12]} 20. a4 {[%clk 0:01:48]}  Rab8 {[%clk 0:02:04]} 21. Nd3 {[%clk 0:01:42]}  Rxc1+ {[%clk 0:01:48]} 22. Rxc1 {[%clk 0:01:41]}  Rc8 {[%clk 0:01:48]} 23. Rxc8+ {[%clk 0:01:17]}  Bxc8 {[%clk 0:01:49]} 24. Bxd5 {[%clk 0:01:06]}  exd5 {[%clk 0:01:49]} 25. a5 {[%clk 0:01:00]}  Ba6 {[%clk 0:01:33]} 26. axb6 {[%clk 0:01:00]}  axb6 {[%clk 0:01:33]} 27. Bb4 {[%clk 0:00:59]}  Bd8 {[%clk 0:01:23]} 28. Ne5 {[%clk 0:00:50]}  Bb5 {[%clk 0:01:21]} 29. f3 {[%clk 0:00:49]}  g5 {[%clk 0:01:20]} 30. h3 {[%clk 0:00:48]}  h5 {[%clk 0:01:10]} 31. Kf2 {[%clk 0:00:46]}  Kg7 {[%clk 0:01:10]} 32. g4 {[%clk 0:00:45]}  fxg4 {[%clk 0:01:08]} 33. fxg4 {[%clk 0:00:42]}  hxg4 {[%clk 0:01:07]} 34. hxg4 {[%clk 0:00:41]}  Kf6 {[%clk 0:01:06]} 35. Kf3 {[%clk 0:00:41]}  Ke6 {[%clk 0:01:06]} 36. e4 {[%clk 0:00:37]}  Ba4 {[%clk 0:01:02]} 37. Bd2 {[%clk 0:00:33]}  Bb3 {[%clk 0:00:59]} 38. Ke3 {[%clk 0:00:29]}  Bf6 {[%clk 0:00:57]} 39. Kd3 {[%clk 0:00:26]}  b5 {[%clk 0:00:54]} 40. exd5+ {[%clk 0:00:22]}  Bxd5 {[%clk 0:00:45]} 41. Kc3 {[%clk 0:00:22]}  Be7 {[%clk 0:00:44]} 42. Kd3 {[%clk 0:00:20]}  b4 {[%clk 0:00:39]} 43. Nc4 {[%clk 0:00:17]}  b3 {[%clk 0:00:35]} 44. Ne3 {[%clk 0:00:16]}  Bf3 {[%clk 0:00:33]} 45. Kc3 {[%clk 0:00:14]}  Bb4+ {[%clk 0:00:29]} 46. Kxb3 {[%clk 0:00:07]}  Bxd2 {[%clk 0:00:29]} 47. Nc4 {[%clk 0:00:04]}  Bd5 {[%clk 0:00:27]} 48. Kc2 {[%clk 0:00:04]}  Bxc4 {[%clk 0:00:27]} 49. Kxd2 {[%clk 0:00:04]}  Kd5 {[%clk 0:00:27]} 50. Ke3 {[%clk 0:00:04]}  Bb5 {[%clk 0:00:28]} 0-1


[Site "https://www.chess.com"]

[Event "Titled Tuesday Blitz June 21 Late 2022"]
[White "Thiel, Thomas"]
[Black "Silvestre, Christian"]
[WhiteFideId "4615964"]
[BlackFideId "30956269"]
[WhiteElo "2234"]
[BlackElo "2429"]
[Result "0-1"]
[Round "09"]
[TimeControl "180+1"]
[Date "2022.06.22"]
[WhiteClock "0:00:01"]
[BlackClock "0:00:45"]

1. e4 {[%clk 0:03:00]}  e5 {[%clk 0:02:52]} 2. Nf3 {[%clk 0:02:58]}  Nc6 {[%clk 0:02:52]} 3. d4 {[%clk 0:02:58]}  exd4 {[%clk 0:02:51]} 4. Nxd4 {[%clk 0:02:59]}  Bc5 {[%clk 0:02:49]} 5. Nb3 {[%clk 0:02:57]}  Bb6 {[%clk 0:02:49]} 6. Nc3 {[%clk 0:02:57]}  Nge7 {[%clk 0:02:46]} 7. Qe2 {[%clk 0:02:57]}  O-O {[%clk 0:02:45]} 8. Bg5 {[%clk 0:02:56]}  Qe8 {[%clk 0:02:36]} 9. O-O-O {[%clk 0:02:53]}  d6 {[%clk 0:02:36]} 10. h3 {[%clk 0:02:50]}  f5 {[%clk 0:02:22]} 11. f4 {[%clk 0:02:24]}  Qg6 {[%clk 0:02:08]} 12. h4 {[%clk 0:01:59]}  h6 {[%clk 0:02:01]} 13. h5 {[%clk 0:01:58]}  Qf7 {[%clk 0:02:00]} 14. Bxe7 {[%clk 0:01:50]}  Nxe7 {[%clk 0:01:52]} 15. g3 {[%clk 0:01:49]}  Bd7 {[%clk 0:01:43]} 16. Bg2 {[%clk 0:01:48]}  fxe4 {[%clk 0:01:36]} 17. Bxe4 {[%clk 0:01:43]}  Bc6 {[%clk 0:01:33]} 18. Bxc6 {[%clk 0:01:32]}  Nxc6 {[%clk 0:01:32]} 19. Nd5 {[%clk 0:01:29]}  Rae8 {[%clk 0:01:22]} 20. Qg4 {[%clk 0:01:25]}  Ne7 {[%clk 0:01:17]} 21. Nxe7+ {[%clk 0:01:21]}  Rxe7 {[%clk 0:01:14]} 22. Rhe1 {[%clk 0:01:18]}  Rfe8 {[%clk 0:01:13]} 23. Rxe7 {[%clk 0:01:15]}  Qxe7 {[%clk 0:01:09]} 24. a4 {[%clk 0:00:56]}  Qe3+ {[%clk 0:01:04]} 25. Kb1 {[%clk 0:00:54]}  Qe2 {[%clk 0:01:04]} 26. Qxe2 {[%clk 0:00:51]}  Rxe2 {[%clk 0:01:05]} 27. Rd2 {[%clk 0:00:42]}  Re1+ {[%clk 0:01:01]} 28. Ka2 {[%clk 0:00:39]}  a5 {[%clk 0:01:00]} 29. c3 {[%clk 0:00:21]}  Rg1 {[%clk 0:00:58]} 30. Rd3 {[%clk 0:00:19]}  Rh1 {[%clk 0:00:55]} 31. g4 {[%clk 0:00:16]}  Rg1 {[%clk 0:00:54]} 32. Rd5 {[%clk 0:00:04]}  Rxg4 {[%clk 0:00:48]} 33. f5 {[%clk 0:00:03]}  Rxa4+ {[%clk 0:00:46]} 34. Kb1 {[%clk 0:00:01]}  Kf7 {[%clk 0:00:45]} 0-1


[Site "https://www.chess.com"]

[Event "Titled Tuesday Blitz June 21 Late 2022"]
[White "Titichoca Daza, Daniel"]
[Black "Barria Zuniga, Daniel"]
[WhiteFideId "3309550"]
[BlackFideId "3400816"]
[WhiteElo "1912"]
[BlackElo "2414"]
[Result "1-0"]
[Round "09"]
[TimeControl "180+1"]
[Date "2022.06.21"]
[WhiteClock "0:00:45"]
[BlackClock "0:00:41"]

1. d4 {[%clk 0:02:56]}  c6 {[%clk 0:02:56]} 2. Bf4 {[%clk 0:02:56]}  Qb6 {[%clk 0:02:55]} 3. e3 {[%clk 0:02:57]}  Qxb2 {[%clk 0:02:54]} 4. Nd2 {[%clk 0:02:57]}  Qb6 {[%clk 0:02:54]} 5. Nc4 {[%clk 0:02:57]}  Qd8 {[%clk 0:02:54]} 6. Bd3 {[%clk 0:02:56]}  Nf6 {[%clk 0:02:51]} 7. Nf3 {[%clk 0:02:55]}  d6 {[%clk 0:02:50]} 8. a4 {[%clk 0:02:52]}  e6 {[%clk 0:02:45]} 9. h4 {[%clk 0:02:48]}  Be7 {[%clk 0:02:45]} 10. h5 {[%clk 0:02:47]}  h6 {[%clk 0:02:41]} 11. e4 {[%clk 0:02:42]}  d5 {[%clk 0:02:38]} 12. exd5 {[%clk 0:02:41]}  exd5 {[%clk 0:02:24]} 13. Nce5 {[%clk 0:02:40]}  O-O {[%clk 0:02:22]} 14. Qd2 {[%clk 0:02:39]}  Ne4 {[%clk 0:02:14]} 15. Qe3 {[%clk 0:02:39]}  Bb4+ {[%clk 0:02:10]} 16. Kf1 {[%clk 0:02:32]}  Nd7 {[%clk 0:02:07]} 17. Bxe4 {[%clk 0:02:24]}  dxe4 {[%clk 0:02:08]} 18. Qxe4 {[%clk 0:02:24]}  Nxe5 {[%clk 0:01:57]} 19. Bxe5 {[%clk 0:02:24]}  Re8 {[%clk 0:01:52]} 20. Qd3 {[%clk 0:02:06]}  Bf8 {[%clk 0:01:42]} 21. Rh4 {[%clk 0:01:57]}  Be6 {[%clk 0:01:41]} 22. Re1 {[%clk 0:01:51]}  Qd5 {[%clk 0:01:36]} 23. Kg1 {[%clk 0:01:48]}  Qc4 {[%clk 0:01:30]} 24. Qd1 {[%clk 0:01:35]}  Rad8 {[%clk 0:01:19]} 25. Nd2 {[%clk 0:01:34]}  Qxa4 {[%clk 0:01:12]} 26. Ne4 {[%clk 0:01:34]}  Bf5 {[%clk 0:01:04]} 27. Nf6+ {[%clk 0:01:00]}  gxf6 {[%clk 0:01:03]} 28. Rg4+ {[%clk 0:01:00]}  Kh7 {[%clk 0:01:02]} 29. Qf3 {[%clk 0:00:53]}  Qxc2 {[%clk 0:01:00]} 30. Ree4 {[%clk 0:00:49]}  Bxe4 {[%clk 0:00:47]} 31. Qxf6 {[%clk 0:00:48]}  Rxe5 {[%clk 0:00:41]} 32. Qxf7+ {[%clk 0:00:46]}  Kh8 {[%clk 0:00:41]} 33. Rg8# {[%clk 0:00:45]} 1-0


[Site "https://www.chess.com"]

[Event "Titled Tuesday Blitz June 21 Late 2022"]
[White "Tologon tegin, Semetei"]
[Black "Estrada Nieto, Julian"]
[WhiteFideId "13800574"]
[BlackFideId "5101018"]
[WhiteElo "2174"]
[BlackElo "2252"]
[Result "1-0"]
[Round "09"]
[TimeControl "180+1"]
[Date "2022.06.22"]
[WhiteClock "0:00:17"]
[BlackClock "0:00:01"]

1. e4 {[%clk 0:03:00]}  e5 {[%clk 0:02:59]} 2. Bc4 {[%clk 0:02:58]}  Nc6 {[%clk 0:02:54]} 3. Nf3 {[%clk 0:02:57]}  Bc5 {[%clk 0:02:52]} 4. O-O {[%clk 0:02:56]}  d6 {[%clk 0:02:46]} 5. d3 {[%clk 0:02:56]}  Nf6 {[%clk 0:02:44]} 6. c3 {[%clk 0:02:55]}  a6 {[%clk 0:02:42]} 7. a4 {[%clk 0:02:54]}  Ba7 {[%clk 0:02:40]} 8. h3 {[%clk 0:02:53]}  h6 {[%clk 0:02:36]} 9. Nbd2 {[%clk 0:02:53]}  g5 {[%clk 0:02:35]} 10. Nh2 {[%clk 0:02:44]}  g4 {[%clk 0:02:18]} 11. hxg4 {[%clk 0:02:37]}  Rg8 {[%clk 0:02:17]} 12. Qf3 {[%clk 0:02:29]}  Qe7 {[%clk 0:02:15]} 13. Nb3 {[%clk 0:01:58]}  Nxg4 {[%clk 0:02:13]} 14. Nxg4 {[%clk 0:01:53]}  Bxg4 {[%clk 0:02:12]} 15. Qg3 {[%clk 0:01:53]}  O-O-O {[%clk 0:02:08]} 16. Be3 {[%clk 0:01:52]}  Be2 {[%clk 0:01:52]} 17. Qh3+ {[%clk 0:01:51]}  Bg4 {[%clk 0:01:40]} 18. Qg3 {[%clk 0:01:37]}  Qd7 {[%clk 0:01:16]} 19. Bxa7 {[%clk 0:01:27]}  Bh3 {[%clk 0:01:13]} 20. Be3 {[%clk 0:01:22]}  Bxg2 {[%clk 0:01:03]} 21. Kxg2 {[%clk 0:01:15]}  Rxg3+ {[%clk 0:01:02]} 22. fxg3 {[%clk 0:01:14]}  Qg4 {[%clk 0:00:59]} 23. Rf3 {[%clk 0:01:06]}  f5 {[%clk 0:00:53]} 24. exf5 {[%clk 0:01:05]}  d5 {[%clk 0:00:52]} 25. f6 {[%clk 0:01:01]}  dxc4 {[%clk 0:00:50]} 26. f7 {[%clk 0:01:01]}  Rf8 {[%clk 0:00:19]} 27. Bxh6 {[%clk 0:00:59]}  Rxf7 {[%clk 0:00:17]} 28. Rxf7 {[%clk 0:00:58]}  cxb3 {[%clk 0:00:16]} 29. Re1 {[%clk 0:00:53]}  Qe6 {[%clk 0:00:13]} 30. Rf8+ {[%clk 0:00:50]}  Kd7 {[%clk 0:00:13]} 31. Be3 {[%clk 0:00:30]}  Qd5+ {[%clk 0:00:13]} 32. Kh2 {[%clk 0:00:30]}  Qxd3 {[%clk 0:00:13]} 33. Rf2 {[%clk 0:00:30]}  Qh7+ {[%clk 0:00:11]} 34. Kg1 {[%clk 0:00:29]}  Qh3 {[%clk 0:00:09]} 35. Rg2 {[%clk 0:00:26]}  Ke6 {[%clk 0:00:09]} 36. g4 {[%clk 0:00:25]}  Qh4 {[%clk 0:00:08]} 37. Rf1 {[%clk 0:00:22]}  e4 {[%clk 0:00:08]} 38. Bf4 {[%clk 0:00:14]}  e3 {[%clk 0:00:07]} 39. Bxe3 {[%clk 0:00:13]}  Ne5 {[%clk 0:00:07]} 40. Bf2 {[%clk 0:00:09]}  Qg5 {[%clk 0:00:06]} 41. Bd4 {[%clk 0:00:05]}  Nd3 {[%clk 0:00:06]} 42. Rg3 {[%clk 0:00:03]}  Nf4 {[%clk 0:00:06]} 43. Re3+ {[%clk 0:00:03]}  Kd5 {[%clk 0:00:05]} 44. Re5+ {[%clk 0:00:03]}  Qxe5 {[%clk 0:00:05]} 45. Bxe5 {[%clk 0:00:04]}  Kxe5 {[%clk 0:00:06]} 46. g5 {[%clk 0:00:03]}  c5 {[%clk 0:00:06]} 47. Rxf4 {[%clk 0:00:02]}  Kxf4 {[%clk 0:00:06]} 48. g6 {[%clk 0:00:03]}  b5 {[%clk 0:00:06]} 49. g7 {[%clk 0:00:04]}  b4 {[%clk 0:00:06]} 50. g8=Q {[%clk 0:00:05]}  bxc3 {[%clk 0:00:06]} 51. Qc4+ {[%clk 0:00:05]}  Ke5 {[%clk 0:00:05]} 52. Qxc3+ {[%clk 0:00:06]}  Kd5 {[%clk 0:00:05]} 53. Qxb3+ {[%clk 0:00:07]}  c4 {[%clk 0:00:05]} 54. Qc3 {[%clk 0:00:08]}  a5 {[%clk 0:00:05]} 55. Kf2 {[%clk 0:00:08]}  Kc5 {[%clk 0:00:05]} 56. Ke3 {[%clk 0:00:09]}  Kd5 {[%clk 0:00:04]} 57. Kf4 {[%clk 0:00:09]}  Kc5 {[%clk 0:00:04]} 58. Ke4 {[%clk 0:00:10]}  Kd6 {[%clk 0:00:03]} 59. Kd4 {[%clk 0:00:11]}  Kc6 {[%clk 0:00:03]} 60. Kxc4 {[%clk 0:00:12]}  Kb6 {[%clk 0:00:03]} 61. Qf6+ {[%clk 0:00:12]}  Kc7 {[%clk 0:00:02]} 62. Kb5 {[%clk 0:00:13]}  Kd7 {[%clk 0:00:01]} 63. Kxa5 {[%clk 0:00:14]}  Kc7 {[%clk 0:00:01]} 64. Kb5 {[%clk 0:00:15]}  Kb7 {[%clk 0:00:01]} 65. Qd6 {[%clk 0:00:15]}  Kc8 {[%clk 0:00:02]} 66. Qe7 {[%clk 0:00:15]}  Kb8 {[%clk 0:00:01]} 67. Kb6 {[%clk 0:00:16]}  Ka8 {[%clk 0:00:01]} 68. Qe8# {[%clk 0:00:17]} 1-0


[Site "https://www.chess.com"]

[Event "Titled Tuesday Blitz June 21 Late 2022"]
[White "Urbina Perez, Juan Antonio"]
[Black "Colpe, Malte"]
[WhiteFideId "2217368"]
[BlackFideId "24623075"]
[WhiteElo "2192"]
[BlackElo "2328"]
[Result "1-0"]
[Round "09"]
[TimeControl "180+1"]
[Date "2022.06.22"]
[WhiteClock "0:00:15"]
[BlackClock "0:00:02"]

1. e4 {[%clk 0:02:59]}  c5 {[%clk 0:02:57]} 2. Nf3 {[%clk 0:02:58]}  Nc6 {[%clk 0:02:55]} 3. Bb5 {[%clk 0:02:58]}  Na5 {[%clk 0:02:49]} 4. O-O {[%clk 0:02:55]}  a6 {[%clk 0:02:48]} 5. Be2 {[%clk 0:02:56]}  e6 {[%clk 0:02:43]} 6. d4 {[%clk 0:02:56]}  Nf6 {[%clk 0:02:40]} 7. e5 {[%clk 0:02:53]}  Nd5 {[%clk 0:02:39]} 8. c4 {[%clk 0:02:53]}  Nb6 {[%clk 0:02:39]} 9. b3 {[%clk 0:02:50]}  cxd4 {[%clk 0:02:38]} 10. Nxd4 {[%clk 0:02:48]}  d5 {[%clk 0:02:35]} 11. exd6 {[%clk 0:02:45]}  Bxd6 {[%clk 0:02:34]} 12. Bb2 {[%clk 0:02:45]}  O-O {[%clk 0:02:29]} 13. Qc2 {[%clk 0:02:45]}  Nc6 {[%clk 0:02:00]} 14. Nxc6 {[%clk 0:02:38]}  Qh4 {[%clk 0:01:46]} 15. g3 {[%clk 0:02:33]}  Qh3 {[%clk 0:01:46]} 16. c5 {[%clk 0:02:18]}  Bd7 {[%clk 0:01:42]} 17. Bf3 {[%clk 0:02:08]}  Nd5 {[%clk 0:01:33]} 18. cxd6 {[%clk 0:02:03]}  Bxc6 {[%clk 0:01:33]} 19. Qe2 {[%clk 0:01:57]}  f6 {[%clk 0:00:54]} 20. Nd2 {[%clk 0:01:11]}  Rad8 {[%clk 0:00:47]} 21. Rac1 {[%clk 0:00:55]}  Kh8 {[%clk 0:00:45]} 22. Rxc6 {[%clk 0:00:51]}  bxc6 {[%clk 0:00:46]} 23. Ba3 {[%clk 0:00:50]}  e5 {[%clk 0:00:39]} 24. d7 {[%clk 0:00:44]}  Rf7 {[%clk 0:00:33]} 25. Bg4 {[%clk 0:00:44]}  Qh6 {[%clk 0:00:30]} 26. Be6 {[%clk 0:00:43]}  Rfxd7 {[%clk 0:00:09]} 27. Bxd7 {[%clk 0:00:44]}  Rxd7 {[%clk 0:00:09]} 28. Ne4 {[%clk 0:00:44]}  Qg6 {[%clk 0:00:05]} 29. Nc5 {[%clk 0:00:44]}  Rd8 {[%clk 0:00:05]} 30. Qe4 {[%clk 0:00:44]}  Qf7 {[%clk 0:00:04]} 31. Rd1 {[%clk 0:00:41]}  Re8 {[%clk 0:00:03]} 32. Qf5 {[%clk 0:00:37]}  g6 {[%clk 0:00:02]} 33. Qd7 {[%clk 0:00:35]}  Qxd7 {[%clk 0:00:03]} 34. Nxd7 {[%clk 0:00:35]}  Kg7 {[%clk 0:00:03]} 35. Bb2 {[%clk 0:00:30]}  a5 {[%clk 0:00:02]} 36. Nc5 {[%clk 0:00:26]}  Re7 {[%clk 0:00:02]} 37. Ne4 {[%clk 0:00:23]}  Kf7 {[%clk 0:00:02]} 38. Nd6+ {[%clk 0:00:22]}  Ke6 {[%clk 0:00:02]} 39. Nc4 {[%clk 0:00:23]}  Ra7 {[%clk 0:00:03]} 40. a4 {[%clk 0:00:18]}  Ra8 {[%clk 0:00:02]} 41. Rd3 {[%clk 0:00:18]}  f5 {[%clk 0:00:01]} 42. Bc3 {[%clk 0:00:18]}  e4 {[%clk 0:00:02]} 43. Rxd5 {[%clk 0:00:15]}  cxd5 {[%clk 0:00:02]} 44. Nxa5 {[%clk 0:00:15]}  Rc8 {[%clk 0:00:02]} 45. Bd4 {[%clk 0:00:15]}  g5 {[%clk 0:00:02]} 46. Nb7 {[%clk 0:00:15]} 1-0


[Site "https://www.chess.com"]

[Event "Titled Tuesday Blitz June 21 Late 2022"]
[White "Wagner, Dennis"]
[Black "Keymer, Vincent"]
[WhiteFideId "24650684"]
[BlackFideId "12940690"]
[WhiteElo "2355"]
[BlackElo "2548"]
[Result "0-1"]
[Round "09"]
[TimeControl "180+1"]
[Date "2022.06.21"]
[WhiteClock "0:00:02"]
[BlackClock "0:00:50"]

1. e4 {[%clk 0:03:00]}  c6 {[%clk 0:02:59]} 2. d4 {[%clk 0:03:01]}  d5 {[%clk 0:03:00]} 3. e5 {[%clk 0:03:02]}  Bf5 {[%clk 0:03:00]} 4. Nf3 {[%clk 0:03:02]}  e6 {[%clk 0:03:00]} 5. Be2 {[%clk 0:03:02]}  c5 {[%clk 0:03:01]} 6. Be3 {[%clk 0:02:54]}  Qb6 {[%clk 0:03:01]} 7. Nc3 {[%clk 0:02:38]}  Nc6 {[%clk 0:03:01]} 8. O-O {[%clk 0:02:37]}  Qxb2 {[%clk 0:03:00]} 9. Qe1 {[%clk 0:02:37]}  cxd4 {[%clk 0:03:00]} 10. Bxd4 {[%clk 0:02:28]}  Nxd4 {[%clk 0:03:00]} 11. Nxd4 {[%clk 0:02:29]}  Bb4 {[%clk 0:03:01]} 12. Rb1 {[%clk 0:02:20]}  Bxc3 {[%clk 0:03:01]} 13. Rxb2 {[%clk 0:02:19]}  Bxe1 {[%clk 0:03:02]} 14. Rxe1 {[%clk 0:02:20]}  b6 {[%clk 0:03:02]} 15. h4 {[%clk 0:02:14]}  h5 {[%clk 0:03:02]} 16. c4 {[%clk 0:02:13]}  Ne7 {[%clk 0:02:55]} 17. Nxf5 {[%clk 0:01:56]}  Nxf5 {[%clk 0:02:38]} 18. cxd5 {[%clk 0:01:53]}  exd5 {[%clk 0:02:39]} 19. Rd1 {[%clk 0:01:45]}  O-O-O {[%clk 0:02:04]} 20. g3 {[%clk 0:01:38]}  Rhe8 {[%clk 0:01:47]} 21. Bxh5 {[%clk 0:01:31]}  g6 {[%clk 0:01:45]} 22. Bf3 {[%clk 0:01:27]}  Rxe5 {[%clk 0:01:45]} 23. a4 {[%clk 0:01:27]}  d4 {[%clk 0:01:39]} 24. h5 {[%clk 0:00:42]}  gxh5 {[%clk 0:01:33]} 25. Bxh5 {[%clk 0:00:42]}  Nxg3 {[%clk 0:01:25]} 26. Bxf7 {[%clk 0:00:37]}  Ne2+ {[%clk 0:01:22]} 27. Kf1 {[%clk 0:00:35]}  Nc3 {[%clk 0:01:22]} 28. Rc2 {[%clk 0:00:25]}  Rc5 {[%clk 0:01:07]} 29. Ra1 {[%clk 0:00:26]}  d3 {[%clk 0:01:05]} 30. Rd2 {[%clk 0:00:20]}  Ne4 {[%clk 0:01:03]} 31. Rdd1 {[%clk 0:00:21]}  d2 {[%clk 0:00:53]} 32. Ra2 {[%clk 0:00:03]}  Nc3 {[%clk 0:00:50]} 33. Be6+ {[%clk 0:00:02]}  Kc7 {[%clk 0:00:50]} 34. Raxd2 {[%clk 0:00:02]}  Nxd1 {[%clk 0:00:50]} 0-1


[Site "https://www.chess.com"]

[Event "Titled Tuesday Blitz June 21 Late 2022"]
[White "Wartiovaara, Oliver"]
[Black "Przybylski, Wojciech"]
[WhiteFideId "513024"]
[BlackFideId "1117599"]
[WhiteElo "1971"]
[BlackElo "2133"]
[Result "0-1"]
[Round "09"]
[TimeControl "180+1"]
[Date "2022.06.22"]
[WhiteClock "0:00:02"]
[BlackClock "0:00:05"]

1. e4 {[%clk 0:03:00]}  c5 {[%clk 0:02:57]} 2. Nf3 {[%clk 0:03:00]}  e6 {[%clk 0:02:57]} 3. d4 {[%clk 0:02:56]}  cxd4 {[%clk 0:02:57]} 4. Nxd4 {[%clk 0:02:56]}  Nc6 {[%clk 0:02:56]} 5. Nc3 {[%clk 0:02:55]}  Qc7 {[%clk 0:02:56]} 6. g3 {[%clk 0:02:50]}  h5 {[%clk 0:02:54]} 7. h3 {[%clk 0:02:43]}  h4 {[%clk 0:02:53]} 8. g4 {[%clk 0:02:42]}  a6 {[%clk 0:02:50]} 9. Bg2 {[%clk 0:02:32]}  Bc5 {[%clk 0:02:45]} 10. Be3 {[%clk 0:02:21]}  Ne5 {[%clk 0:02:33]} 11. Qe2 {[%clk 0:01:44]}  Ng6 {[%clk 0:02:27]} 12. Qd2 {[%clk 0:01:34]}  b5 {[%clk 0:02:19]} 13. O-O {[%clk 0:01:05]}  Bb7 {[%clk 0:02:11]} 14. Rfe1 {[%clk 0:01:00]}  b4 {[%clk 0:02:05]} 15. Nd5 {[%clk 0:00:55]}  exd5 {[%clk 0:01:56]} 16. exd5 {[%clk 0:00:51]}  Kf8 {[%clk 0:01:54]} 17. Nf5 {[%clk 0:00:43]}  Bd6 {[%clk 0:01:39]} 18. c4 {[%clk 0:00:32]}  Nf6 {[%clk 0:01:35]} 19. c5 {[%clk 0:00:21]}  Bh2+ {[%clk 0:01:30]} 20. Kh1 {[%clk 0:00:20]}  Bf4 {[%clk 0:01:28]} 21. d6 {[%clk 0:00:16]}  Bxg2+ {[%clk 0:01:26]} 22. Kxg2 {[%clk 0:00:16]}  Qb7+ {[%clk 0:01:22]} 23. f3 {[%clk 0:00:15]}  Be5 {[%clk 0:00:50]} 24. Rad1 {[%clk 0:00:08]}  Re8 {[%clk 0:00:46]} 25. Bd4 {[%clk 0:00:08]}  Nf4+ {[%clk 0:00:41]} 26. Kh2 {[%clk 0:00:01]}  Qxf3 {[%clk 0:00:38]} 27. Re3 {[%clk 0:00:01]}  Qd5 {[%clk 0:00:08]} 28. Bxe5 {[%clk 0:00:01]}  Rxe5 {[%clk 0:00:07]} 29. Qxd5 {[%clk 0:00:01]}  Rxd5 {[%clk 0:00:06]} 30. Rde1 {[%clk 0:00:02]}  Ne6 {[%clk 0:00:05]} 31. g5 {[%clk 0:00:01]}  g6 {[%clk 0:00:05]} 32. gxf6 {[%clk 0:00:02]}  gxf5 {[%clk 0:00:05]} 0-1


[Site "https://www.chess.com"]

[Event "Titled Tuesday Blitz June 21 Late 2022"]
[White "Zhou, Qiyu"]
[Black "Winkels, Marcel"]
[WhiteFideId "505161"]
[BlackFideId "1003887"]
[WhiteElo "1925"]
[BlackElo "1900"]
[Result "1-0"]
[Round "09"]
[TimeControl "180+1"]
[Date "2022.06.22"]
[WhiteClock "0:00:07"]
[BlackClock "0:00:02"]

1. e4 {[%clk 0:03:00]}  c5 {[%clk 0:02:59]} 2. Nf3 {[%clk 0:03:00]}  e6 {[%clk 0:02:59]} 3. d4 {[%clk 0:03:00]}  cxd4 {[%clk 0:03:00]} 4. Nxd4 {[%clk 0:03:01]}  a6 {[%clk 0:03:00]} 5. c4 {[%clk 0:03:00]}  Bc5 {[%clk 0:02:57]} 6. Be3 {[%clk 0:02:52]}  d6 {[%clk 0:02:54]} 7. Be2 {[%clk 0:02:49]}  Nf6 {[%clk 0:02:52]} 8. Nc3 {[%clk 0:02:46]}  O-O {[%clk 0:02:48]} 9. O-O {[%clk 0:02:43]}  Nc6 {[%clk 0:02:44]} 10. Qd2 {[%clk 0:02:36]}  Qc7 {[%clk 0:02:31]} 11. Rfd1 {[%clk 0:02:27]}  Ne5 {[%clk 0:02:21]} 12. f3 {[%clk 0:02:00]}  Ba7 {[%clk 0:02:12]} 13. b3 {[%clk 0:01:58]}  Ng6 {[%clk 0:01:52]} 14. Rac1 {[%clk 0:01:55]}  e5 {[%clk 0:01:43]} 15. Nc2 {[%clk 0:01:51]}  Bb8 {[%clk 0:01:28]} 16. Nb4 {[%clk 0:01:29]}  Be6 {[%clk 0:01:19]} 17. Kh1 {[%clk 0:01:26]}  Rd8 {[%clk 0:01:08]} 18. c5 {[%clk 0:01:00]}  Qe7 {[%clk 0:00:51]} 19. Nbd5 {[%clk 0:00:52]}  Bxd5 {[%clk 0:00:50]} 20. Nxd5 {[%clk 0:00:53]}  Nxd5 {[%clk 0:00:50]} 21. exd5 {[%clk 0:00:54]}  dxc5 {[%clk 0:00:41]} 22. Bxc5 {[%clk 0:00:55]}  Bd6 {[%clk 0:00:41]} 23. Bb6 {[%clk 0:00:55]}  Rdc8 {[%clk 0:00:39]} 24. Qe3 {[%clk 0:00:51]}  Nf4 {[%clk 0:00:34]} 25. Bf1 {[%clk 0:00:47]}  Qd7 {[%clk 0:00:26]} 26. Bc4 {[%clk 0:00:29]}  h6 {[%clk 0:00:17]} 27. Rd2 {[%clk 0:00:23]}  Qe7 {[%clk 0:00:16]} 28. Rcd1 {[%clk 0:00:22]}  Bb4 {[%clk 0:00:15]} 29. Rf2 {[%clk 0:00:19]}  Bc5 {[%clk 0:00:13]} 30. Bxc5 {[%clk 0:00:19]}  Qxc5 {[%clk 0:00:11]} 31. Qxc5 {[%clk 0:00:18]}  Rxc5 {[%clk 0:00:12]} 32. g3 {[%clk 0:00:18]}  Ng6 {[%clk 0:00:11]} 33. Rfd2 {[%clk 0:00:18]}  Rcc8 {[%clk 0:00:10]} 34. d6 {[%clk 0:00:16]}  Nf8 {[%clk 0:00:07]} 35. Bd5 {[%clk 0:00:14]}  Rab8 {[%clk 0:00:04]} 36. Be4 {[%clk 0:00:13]}  Rd8 {[%clk 0:00:04]} 37. Rc1 {[%clk 0:00:12]}  g6 {[%clk 0:00:04]} 38. Rc7 {[%clk 0:00:12]}  Ne6 {[%clk 0:00:03]} 39. Rxb7 {[%clk 0:00:08]}  Rxb7 {[%clk 0:00:03]} 40. Bxb7 {[%clk 0:00:09]}  Nd4 {[%clk 0:00:03]} 41. Bxa6 {[%clk 0:00:08]}  Rxd6 {[%clk 0:00:03]} 42. Kg2 {[%clk 0:00:08]}  Rxa6 {[%clk 0:00:02]} 43. Rb2 {[%clk 0:00:07]} 1-0


[Site "https://www.chess.com"]